[Event "FishPartners Open 2018"]
[Site "Spakenburg"]
[Date "2018.07.07"]
[Round "7"]
[White "Beerdsen, Thomas"]
[Black "Van de Griendt, Jan Willem"]
[Result "1-0"]
[ECO "B40"]
[WhiteElo "2469"]
[BlackElo "2335"]
[Annotator "ChessBase"]
[PlyCount "87"]
[EventDate "2018.07.07"]
[EventType "swiss"]
[EventCountry "NED"]
[SourceTitle "playchess.com"]
[Source "ChessBase"]
[SourceQuality "1"]
[TimeControl "1500"]

1. e4 {[%emt 0:00:02]} c5 {[%emt 0:00:12]} 2. Nf3 {[%emt 0:00:02]} e6 {[%emt 0:00:01]} 3. b3 {[%emt 0:00:09]} d5 {[%emt 0:00:57]} 4. exd5 {[%emt 0:00:13]} exd5 {[%emt 0:00:01]} 5. Bb2 {[%emt 0:00:03]} Nf6 {[%emt 0:00:39]} 6. Bb5+ {[%emt 0:00:04]} Nc6 {[%emt 0:00:48]} 7. Qe2+ {[%emt 0:00:18]} Be7 {[%emt 0:00:38]} 8. Bxf6 {[%emt 0:00:05]} gxf6 {[%emt 0:00:02]} 9. O-O {[%emt 0:00:13]} Rg8 {[%emt 0:01:19]} 10. Re1 {[%emt 0:00:16]} Kf8 {[%emt 0:00:25]} 11. Nc3 {[%emt 0:00:38]} Bg4 {[%emt 0:04:02]} 12. Bxc6 {[%emt 0:02:07]} bxc6 {[%emt 0:00:02]} 13. Kf1 {[%emt 0:01:33]} Qd6 {[%emt 0:01:36]} 14. h3 {[%emt 0:00:22]} Bd7 {[%emt 0:00:29]} 15. Qd3 {[%emt 0:02:02]} Rg7 {[%emt 0:00:38]} 16. Re2 {[%emt 0:00:22]} Qf4 17. Rxe7 {[%emt 0:02:01]} Kxe7 {[%emt 0:00:27]} 18. Qxd5 {[%emt 0:00:02]} Qf5 {[%emt 0:01:35]} 19. Re1+ {[%emt 0:00:30]} Kf8 {[%emt 0:00:01]} 20. Qd6+ {[%emt 0:00:09]} Kg8 {[%emt 0:00:01]} 21. Ne4 {[%emt 0:00:22]} Be6 {[%emt 0:00:33]} 22. Nh4 {[%emt 0:01:18]} Qe5 {[%emt 0:00:01]} 23. Qxe5 {[%emt 0:00:08]} fxe5 {[%emt 0:00:01]} 24. Nxc5 {[%emt 0:00:04]} Rd8 {[%emt 0:00:17]} 25. d3 {[%emt 0:00:20]} Rd5 26. Ne4 {[%emt 0:00:01]} Kf8 {[%emt 0:00:03]} 27. Nf3 {[%emt 0:00:07]} Ke7 {[%emt 0:00:28]} 28. b4 {[%emt 0:00:34]} f6 {[%emt 0:00:18]} 29. Nc5 {[%emt 0:00:33]} Bf5 {[%emt 0:00:53]} 30. g4 {[%emt 0:00:48]} Bc8 {[%emt 0:00:01]} 31. Kg2 {[%emt 0:00:33]} h5 {[%emt 0:00:03]} 32. g5 {[%emt 0:00:04]} h4 {[%emt 0:00:11]} 33. Kh2 {[%emt 0:00:11]} fxg5 {[%emt 0:00:30]} 34. c4 {[%emt 0:00:14]} Rd8 {[%emt 0:00:06]} 35. Rxe5+ {[%emt 0:00:13]} Kf6 {[%emt 0:00:09]} 36. Ne4+ {[%emt 0:00:12]} Kg6 {[%emt 0:00:08]} 37. Rxg5+ {[%emt 0:00:05]} Kh6 {[%emt 0:00:01]} 38. Rc5 {[%emt 0:00:45]} Rxd3 {[%emt 0:01:54]} 39. Rxc6+ {[%emt 0:00:02]} Kh5 {[%emt 0:00:01]} 40. Nf6+ {[%emt 0:00:12]} Kh6 {[%emt 0:00:00]} 41. Ng4+ {[%emt 0:00:33]} Kh7 {[%emt 0:00:03]} 42. Nf6+ {[%emt 0:00:29]} Kh6 {[%emt 0:00:00]} 43. Ne8+ {[%emt 0:00:49]} Kh7 {[%emt 0:00:02]} 44. Nxg7 {[%emt 0:00:01]} 1-0

[Event "FishPartners Open 2018"]
[Site "Spakenburg"]
[Date "2018.07.07"]
[Round "7"]
[White "Lai, Hing Ting"]
[Black "Timman, Jan H"]
[Result "1-0"]
[ECO "A46"]
[WhiteElo "2447"]
[BlackElo "2555"]
[Annotator "ChessBase"]
[PlyCount "85"]
[EventDate "2018.07.07"]
[EventType "swiss"]
[EventCountry "NED"]
[SourceTitle "playchess.com"]
[Source "ChessBase"]
[SourceQuality "1"]
[TimeControl "1500"]

1. d4 {[%emt 0:00:05]} Nf6 {[%emt 0:00:03]} 2. Nf3 {[%emt 0:00:00]} e6 {[%emt 0:00:05]} 3. Bf4 {[%emt 0:00:02]} b6 {[%emt 0:00:12]} 4. e3 {[%emt 0:00:02]} Bb7 {[%emt 0:00:01]} 5. h3 {[%emt 0:00:01]} g6 {[%emt 0:00:04]} 6. Nbd2 {[%emt 0:00:01]} Bg7 {[%emt 0:00:02]} 7. Be2 {[%emt 0:00:01]} d6 {[%emt 0:00:03]} 8. O-O {[%emt 0:00:02]} Nbd7 {[%emt 0:00:03]} 9. Bh2 {[%emt 0:00:02]} O-O {[%emt 0:00:03]} 10. c3 {[%emt 0:00:31]} Qe7 {[%emt 0:00:04]} 11. Nc4 {[%emt 0:00:03]} Ne4 {[%emt 0:00:11]} 12. Qc2 {[%emt 0:00:00]} f5 {[%emt 0:00:06]} 13. a4 {[%emt 0:00:09]} a6 {[%emt 0:00:06]} 14. Rfd1 {[%emt 0:00:04]} g5 {[%emt 0:00:21]} 15. Nfd2 {[%emt 0:00:12]} Ndf6 {[%emt 0:00:18]} 16. Nxe4 {[%emt 0:00:50]} Bxe4 {[%emt 0:00:22]} 17. Bd3 {[%emt 0:00:06]} Bxd3 {[%emt 0:00:29]} 18. Qxd3 {[%emt 0:00:02]} g4 {[%emt 0:00:12]} 19. hxg4 {[%emt 0:00:42]} Nxg4 {[%emt 0:00:02]} 20. Bg3 {[%emt 0:00:01]} Qg5 {[%emt 0:00:34]} 21. Nd2 Qg6 {[%emt 0:00:14]} 22. Nf3 {[%emt 0:00:23]} Kh8 {[%emt 0:00:32]} 23. Nd2 {[%emt 0:02:38]} Bh6 {[%emt 0:00:22]} 24. Nf1 {[%emt 0:00:20]} Rf7 {[%emt 0:00:44]} 25. b4 {[%emt 0:00:15]} Rg8 {[%emt 0:00:33]} 26. Ra2 {[%emt 0:00:20]} Qh5 {[%emt 0:00:18]} 27. Re2 {[%emt 0:01:10]} e5 {[%emt 0:00:20]} 28. dxe5 {[%emt 0:00:11]} dxe5 {[%emt 0:00:32]} 29. f3 {[%emt 0:00:47]} e4 {[%emt 0:01:06]} 30. Qd4+ {[%emt 0:01:08]} Nf6 {[%emt 0:00:26]} 31. Rf2 {[%emt 0:00:15]} Bg7 {[%emt 0:00:29]} 32. Qc4 {[%emt 0:00:24]} exf3 {[%emt 0:00:26]} 33. gxf3 {[%emt 0:00:03]} b5 {[%emt 0:00:40]} 34. axb5 {[%emt 0:00:11]} axb5 {[%emt 0:00:01]} 35. Qe2 {[%emt 0:00:48]} Bh6 {[%emt 0:00:42]} 36. Rh2 {[%emt 0:00:15]} Qg6 {[%emt 0:00:07]} 37. Rg2 {[%emt 0:00:10]} Rfg7 {[%emt 0:00:09]} 38. Rd2 {[%emt 0:01:24]} Qe8 {[%emt 0:00:18]} 39. Qd3 {[%emt 0:01:11]} Rxg3 {[%emt 0:02:29]} 40. Nxg3 {[%emt 0:01:11]} Rxg3 {[%emt 0:00:26]} 41. Rxg3 {[%emt 0:00:14]} Bxe3+ {[%emt 0:00:54]} 42. Kg2 {[%emt 0:00:26]} f4 {[%emt 0:01:06]} 43. Qd8 {[%emt 0:00:19]} 1-0

[Event "FishPartners Open 2018"]
[Site "Spakenburg"]
[Date "2018.07.07"]
[Round "7"]
[White "Bosboom, Manuel"]
[Black "Van Brummelen, Kevin"]
[Result "0-1"]
[ECO "A30"]
[WhiteElo "2403"]
[BlackElo "2136"]
[Annotator "NA"]
[PlyCount "44"]
[EventDate "2018.07.07"]
[EventType "swiss"]
[EventCountry "NED"]
[SourceTitle "playchess.com"]
[Source "ChessBase"]
[SourceQuality "1"]
[TimeControl "1500"]

1. c4 {[%emt 0:00:01]} c5 {[%emt 0:00:05]} 2. g3 {[%emt 0:00:03]} Nc6 {[%emt 0:00:01]} 3. Bg2 {[%emt 0:00:01]} Nf6 {[%emt 0:00:03]} 4. Nc3 {[%emt 0:00:15]} g6 {[%emt 0:00:05]} 5. e3 {[%emt 0:00:05]} Bg7 {[%emt 0:00:05]} 6. d4 {[%emt 0:00:02]} cxd4 {[%emt 0:00:09]} 7. exd4 {[%emt 0:00:01]} d6 {[%emt 0:00:08]} 8. Nge2 {[%emt 0:00:05]} O-O {[%emt 0:00:03]} 9. O-O {[%emt 0:00:07]} Bd7 {[%emt 0:00:09]} 10. b3 {[%emt 0:00:39]} Qc8 {[%emt 0:00:03]} 11. Bb2 {[%emt 0:00:10]} Bh3 {[%emt 0:00:08]} 12. Qd2 {[%emt 0:00:14]} Bxg2 {[%emt 0:00:27]} 13. Kxg2 {[%emt 0:00:01]} e5 {[%emt 0:01:09]} 14. d5 {[%emt 0:01:40]} Ne7 {[%emt 0:00:04]} 15. Ba3 {[%emt 0:00:32]} Rd8 {[%emt 0:00:26]} 16. Rae1 {[%emt 0:00:13]} Nf5 {[%emt 0:01:03]} 17. Qd3 {[%emt 0:00:20]} h5 {[%emt 0:02:12]} 18. f4 {[%emt 0:00:03]} e4 {[%emt 0:00:03]} 19. Qd2 {[%emt 0:00:40]} Ng4 {[%emt 0:01:23]} 20. Ng1 {[%emt 0:01:02]} e3 {[%emt 0:00:22]} 21. Qc2 {[%emt 0:00:30]} Nf2 {[%emt 0:00:09]} 22. Nd1 {[%emt 0:02:22]} Nh4+ {[%emt 0:00:12]} 0-1

[Event "FishPartners Open 2018"]
[Site "Spakenburg"]
[Date "2018.07.07"]
[Round "7"]
[White "Van der Wiel, John T H"]
[Black "Vogel, Jaap"]
[Result "1-0"]
[ECO "C05"]
[WhiteElo "2389"]
[BlackElo "2187"]
[Annotator "NA"]
[PlyCount "47"]
[EventDate "2018.07.07"]
[EventType "swiss"]
[EventCountry "NED"]
[SourceTitle "playchess.com"]
[Source "ChessBase"]
[SourceQuality "1"]
[TimeControl "1500"]

1. e4 {[%emt 0:00:03]} e6 {[%emt 0:00:01]} 2. d4 {[%emt 0:00:01]} d5 {[%emt 0:00:01]} 3. Nd2 {[%emt 0:00:01]} Nf6 {[%emt 0:00:06]} 4. e5 {[%emt 0:00:03]} Nfd7 {[%emt 0:00:01]} 5. f4 {[%emt 0:00:03]} c5 {[%emt 0:00:02]} 6. c3 {[%emt 0:00:01]} Nc6 {[%emt 0:00:03]} 7. Ndf3 {[%emt 0:00:02]} Be7 {[%emt 0:00:24]} 8. Bd3 {[%emt 0:00:31]} Rb8 {[%emt 0:00:03]} 9. Ne2 {[%emt 0:00:13]} b5 {[%emt 0:00:01]} 10. f5 {[%emt 0:00:33]} b4 {[%emt 0:00:33]} 11. fxe6 {[%emt 0:00:16]} fxe6 {[%emt 0:00:02]} 12. Nf4 {[%emt 0:00:16]} Nf8 {[%emt 0:00:37]} 13. Nh5 {[%emt 0:00:43]} Rg8 {[%emt 0:00:24]} 14. O-O {[%emt 0:00:24]} bxc3 {[%emt 0:02:33]} 15. bxc3 {[%emt 0:00:03]} cxd4 {[%emt 0:00:02]} 16. cxd4 {[%emt 0:00:08]} Qb6 {[%emt 0:00:05]} 17. Rb1 {[%emt 0:05:10]} Qxb1 {[%emt 0:00:23]} 18. Bxb1 {[%emt 0:00:02]} Rxb1 {[%emt 0:00:02]} 19. Qc2 {[%emt 0:00:07]} Rb6 {[%emt 0:00:02]} 20. Bg5 {[%emt 0:00:03]} h6 {[%emt 0:10:57]} 21. Bxe7 {[%emt 0:00:14]} Nxe7 {[%emt 0:00:06]} 22. Nf6+ {[%emt 0:06:16]} gxf6 {[%emt 0:00:45]} 23. exf6 {[%emt 0:00:02]} Bd7 {[%emt 0:04:05]} 24. Ne5 1-0

[Event "FishPartners Open 2018"]
[Site "Spakenburg"]
[Date "2018.07.07"]
[Round "7"]
[White "De Graaf, Dion"]
[Black "Tasc, R30 (computer)"]
[Result "0-1"]
[ECO "A04"]
[WhiteElo "1789"]
[BlackElo "2380"]
[Annotator "NA"]
[PlyCount "66"]
[EventDate "2018.07.07"]
[EventType "swiss"]
[EventCountry "NED"]
[SourceTitle "playchess.com"]
[Source "ChessBase"]
[SourceQuality "1"]
[TimeControl "1500"]

1. Nf3 {[%emt 0:00:03]} Nc6 {[%emt 0:00:11]} 2. d4 {[%emt 0:00:05]} d5 {[%emt 0:00:11]} 3. b3 {[%emt 0:00:13]} Bf5 {[%emt 0:00:25]} 4. e3 {[%emt 0:00:15]} e6 {[%emt 0:00:29]} 5. Be2 {[%emt 0:00:25]} Nf6 {[%emt 0:00:30]} 6. O-O {[%emt 0:00:23]} Bd6 {[%emt 0:00:12]} 7. Bb2 {[%emt 0:00:05]} O-O {[%emt 0:00:33]} 8. Nbd2 {[%emt 0:00:23]} a6 {[%emt 0:00:11]} 9. c4 {[%emt 0:00:07]} Nd7 {[%emt 0:00:30]} 10. Rc1 {[%emt 0:00:18]} Qf6 {[%emt 0:00:30]} 11. a3 {[%emt 0:00:33]} Rfe8 {[%emt 0:00:28]} 12. b4 {[%emt 0:00:20]} Qh6 {[%emt 0:00:17]} 13. Re1 {[%emt 0:02:13]} Nf6 {[%emt 0:00:40]} 14. c5 {[%emt 0:03:06]} Be7 {[%emt 0:00:25]} 15. Ne5 {[%emt 0:00:22]} Nxe5 {[%emt 0:00:15]} 16. dxe5 {[%emt 0:00:02]} Ne4 {[%emt 0:00:14]} 17. f4 {[%emt 0:02:00]} Bh4 {[%emt 0:00:32]} 18. Rf1 {[%emt 0:00:26]} Nxd2 {[%emt 0:00:25]} 19. Qxd2 {[%emt 0:00:09]} Qg6 {[%emt 0:00:14]} 20. Rfd1 {[%emt 0:02:00]} Be4 {[%emt 0:00:25]} 21. Bf1 {[%emt 0:00:21]} a5 {[%emt 0:00:10]} 22. bxa5 c6 {[%emt 0:00:12]} 23. Bc3 {[%emt 0:03:32]} Be7 {[%emt 0:00:24]} 24. Bb4 {[%emt 0:01:00]} f6 {[%emt 0:00:24]} 25. exf6 {[%emt 0:00:48]} Bxf6 {[%emt 0:00:26]} 26. Bc3 {[%emt 0:00:43]} e5 {[%emt 0:00:12]} 27. fxe5 {[%emt 0:00:32]} Bxe5 {[%emt 0:00:33]} 28. Bd4 {[%emt 0:00:10]} Bc7 {[%emt 0:00:28]} 29. Bc3 {[%emt 0:00:11]} Qh6 {[%emt 0:00:26]} 30. h3 {[%emt 0:00:55]} Qg5 {[%emt 0:00:11]} 31. Ra1 {[%emt 0:00:26]} Qg3 {[%emt 0:00:22]} 32. Qd4 {[%emt 0:00:25]} Re7 {[%emt 0:00:13]} 33. Ra2 {[%emt 0:00:10]} Rf8 0-1